{"text_format":"1","workbook":"xlsx","n_sheets":22,"sheets":["Indice","KM1","OV1 ","CCA","CC1","CC2","LR1","LR2","LIQ1","LIQ2","CR1","CR2","CR3","CR4","CR5","CCR1","CCR3","CCR5","CCR8","SEC1","MR1","ENC"],"not_rendered":{"charts":0,"images":2,"macros":1,"external_links":0,"defined_names":24,"comments":0,"pivot_tables":0},"unopened":[],"bounds":{"document_bytes":16777216,"sheet_cells":100000,"rows_first":2000,"rows_last":500,"rows_between":2000,"halvings":0,"cell_chars":16384,"cell_head_chars":4096},"cells_cut":0,"cells_raw":0,"read":"whole","date_system":"1900"}

{"sheet":"Indice","index":0,"n_rows":47,"n_cols":4,"rows_kept":47,"cut":false,"hidden":false,"merged":[[7,1,7,3],[16,1,16,3],[11,1,11,3],[46,1,47,3],[20,1,20,3],[24,1,24,3],[31,1,31,3],[37,1,37,3],[40,1,40,3],[43,1,43,3]]}
[]
[null,"2024-06-01"]
[]
[]
[null,"Informe con Relevancia Prudencial (Pilar 3) Banco Security"]
[null,"Información a nivel de consolidación local/global."]
[]
[null,"Presentación de la gestión de riesgos, parámetros prudenciales claves y APR"]
[null,"KM1"," Parámetros claves","Ir a tabla KM1 "]
[null,"OV1"," Presentación de los APR","Ir a tabla OV1 "]
[]
[null,"Composición del capital"]
[null,"CCA","Principales características de los instrumentos de capital regulatorio","Ir a tabla CCA "]
[null,"CC1","Composición del capital regulatorio","Ir a tabla CC1 "]
[null,"CC2","Conciliación del capital regulatorio con el balance","Ir a tabla CC2"]
[]
[null,"Coeficiente de apalancamiento"]
[null,"LR1"," Resumen comparativo de los activos contables frente a la medida de la exposición del coeficiente de apalancamiento","Ir a tabla LR1 "]
[null,"LR2"," Formulario divulgativo común del coeficiente de apalancamiento","Ir a tabla LR2 "]
[]
[null,"Liquidez"]
[null,"LIQ1","Razón de cobertura de liquidez (LCR)","Ir a tabla LQ1 "]
[null,"LIQ2","Razón de financiación estable neta (NSFR)","Ir a tabla LQ2 "]
[]
[null,"Riesgo de crédito"]
[null,"CR1","Calidad crediticia de los activos","Ir a tabla CR1"]
[null,"CR2","Cambios en el stock de préstamos y títulos de deuda en incumplimiento","Ir a tabla CR2"]
[null,"CR3","Técnicas de mitigación del riesgo de crédito: presentación general","Ir a tabla CR3"]
[null,"CR4","Método estándar: exposición al riesgo de crédito y efectos de técnicas para su mitigación (CRM)","Ir a tabla CR4"]
[null,"CR5","Método estándar: exposiciones por tipo de contraparte y ponderaciones por riesgo","Ir a tabla CR5"]
[]
[null,"Riesgo de crédito de contraparte"]
[null,"CCR1","Análisis de la exposición al riesgo de crédito de contraparte","Ir a tabla CCR1"]
[null,"CCR3","Método estándar para las exposiciones CCR por cartera regulatoria y ponderaciones por riesgo","Ir a tabla CCR3"]
[null,"CCR5","Composición del colateral para exposiciones al CCR","Ir a tabla CCR5"]
[null,"CCR8","Exposiciones frente a entidades de contrapartida central","Ir a tabla CCR8"]
[]
[null,"Securitización"]
[null,"SEC1","Exposiciones de securitización en el libro de banca","Ir a tabla SEC1"]
[]
[null,"Riesgo de Mercado"]
[null,"MR1","Riesgo de mercado con el método estándar (MES)","Ir a tabla MR1"]
[]
[null,"Cargas sobre activos"]
[null,"ENC","Cargas sobre activos","Ir a tabla ENC"]
[]
[null,"Nota: \nA.- No se presentan los siguientes formularios, dado que el banco no utiliza metodologías internas para el cálculo de APR:\n(i) CR6: MI: exposiciones al riesgo de crédito por cartera e intervalo de probabilidad de incumplimiento (PI),\n(ii) CR8: Cambios en los APRC bajo el uso de metodologías internas, \n(iii) CR9: MI: comprobación de la probabilidad de incumplimiento (PI) por cartera,\n(iv) CCR4: MI exposiciones al CCR por cartera  intervalo de PI, \n(v) CMS1: Comparación de APR calculados con metodologías internas y método estándar a nivel de riesgo, \n(vi)  CMS2: Comparación de APR calculados con metodologías internas y método estándar a nivel de clase de activos\n\nB.- No se presentan los siguientes formularios, dado que el banco no posee exposición a los siguientes tipos de securitizaciones:\n(vii) SEC2: Cartera de securitizaciones en el libro de negociación, \n(viii) SEC3: Exposiciones de securitización en el libro de banca y requerimientos de capital regulatorio asociados a bancos que actúan como originador o patrocinador, \n(ix) SEC4: Exposiciones de securitización en el libro de banca y requerimientos de capital regulatorio asociados a bancos que actúan como inversionista"]

{"sheet":"KM1","index":1,"n_rows":51,"n_cols":8,"rows_kept":51,"cut":false,"hidden":false,"merged":[[5,1,5,2],[50,1,55,7]]}
[]
[]
[]
[]
[null,"KM1: Parámetros clave"]
[null,"Cifras en millones de pesos chilenos (CLP$)"]
[null,"","","a","b","c","d","e"]
[null,"","",{"$f":"Indice!B2","v":"2024-06-01"},{"$f":"EOMONTH(D8,-3)","v":"2024-03-31"},{"$f":"EOMONTH(E8,-3)","v":"2023-12-31"},"2023-09-30","2023-06-30"]
[null,"","Capital disponible (montos)"]
[null,"1","Capital básico o capital ordinario nivel 1 (CET1)",862457.94784899987,893802.44900760008,863829.6443086121,835286.18060441187,803228.943785112]
[null,"1a","Modelo contable ECL con plena aplicación de las normas"]
[null,"2","Capital nivel 1",862457.94784899987,893802.44900760008,863829.6443086121,874786.7743350236,843707.01985358144]
[null,"2a","Capital Nivel 1 con modelo contable ECL con plena aplicación de las normas"]
[null,"3","Patrimonio efectivo",1238613.5370009998,1270280.1204136,1260861.5310356121,1229688.0206224117,1196758.908849112]
[null,"3a","Patrimonio efectivo con modelo contable ECL con plena aplicación de las normas"]
[null,"","Activos ponderados por riesgo (montos)"]
[null,"4","Total de activos ponderados por riesgo (APR)",7787038.8018065896,7877457.2936230004,7989849.803775304,7900118.7461223584,8095615.2136938963]
[null,"4a","Total de activos ponderados por riesgo (antes de la aplicación del piso mínimo)"]
[null,"","Coeficientes de capital en función del riesgo (porcentaje de los APR)"]
[null,"5","Coeficiente CET1 (%)",0.11075557343427003,0.11346331889747668,0.10811588021347307,0.10573083866801346,9.9217776856097867E-2]
[null,"5a","Coeficiente CET1 con modelo contable ECL con plena aplicación de las normas (%)"]
[null,"5b","Coeficiente CET1 (%) (coeficiente antes de la aplicación del piso mínimo)"]
[null,"6","Coeficiente de capital nivel 1 (%)",0.11075557343427003,0.11346331889747668,0.10811588021347307,0.11073083866801345,0.10421777685609786]
[null,"6a","Coeficiente de capital de Nivel 1 con modelo contable ECL con plena aplicación de las normas (%)"]
[null,"6b","Coeficiente de capital de Nivel 1 (%) (coeficiente antes de la aplicación del piso mínimo)"]
[null,"7","Coeficiente de patrimonio efectivo (%)",0.15906091757416721,0.16125509451405387,0.15780791404111744,0.1556543718062445,0.14782803743250669]
[null,"7a","Coeficiente de patrimonio efectivo con modelo contable ECL con plena aplicación de las normas (%)"]
[null,"7b","Coeficiente de patrimonio efectivo (%) (coeficiente antes de la aplicación del piso mínimo)"]
[null,"","Capital básico adicional (porcentaje de los APR)"]
[null,"8","Requerimiento del colchón de conservación (%)",1.8750000000000003E-2,1.8750000000000003E-2,1.8750000000000003E-2,1.2500000000000001E-2,1.2500000000000001E-2]
[null,"9","Requerimiento del colchón contra cíclico (%)",5.0000000000000001E-3,0,0,0,0]
[null,"10","Requerimientos adicionales para D-SIB (%)",0,0,0,0,0]
[null,"11","Total de requerimientos adicionales de capital básico (%)\n(fila 8 + fila 9 + fila 10)",2.3750000000000004E-2,1.8750000000000003E-2,1.8750000000000003E-2,1.2500000000000001E-2,1.2500000000000001E-2]
[null,"12","CET1 disponible después de cumplir los requerimientos de capital mínimos del banco (%)",6.3997760934270037E-2,6.8463318897476685E-2,6.3115880213473072E-2,6.0730838668013459E-2,5.4217776856097868E-2]
[null,"","Razón de apalancamiento"]
[null,"13","Medida de exposición total de la razón de apalancamiento (activos totales)",10412247.953547001,11221723.300680667,10977691.176389335,10961452.542043667,11038905.967722185]
[null,"14","Razón de apalancamiento (%) (fila 1/ fila 13)",8.207998124995626E-2,7.872429836566619E-2,7.7891139463175232E-2,7.5466068300215725E-2,7.1467673941410972E-2]
[null,"14a","Coeficiente de apalancamiento de Basilea III con modelo contable ECL con plena aplicación de las normas (%) (incluidos los efectos de cualquier exención temporal aplicable de las reservas en bancos centrales)"]
[null,"14b","Coeficiente de apalancamiento de Basilea III (%) (excluidos los efectos de cualquier exención temporal aplicable de las reservas en bancos centrales)"]
[null,"","Razón de cobertura de liquidez (LCR)"]
[null,"15","Activos líquidos de alta calidad (ALAC)",{"$f":"'LIQ1'!E35","v":1215549.922613},1280688.9341907001,1216341.5584834833,1387290.4071466702,1434100.16865667]
[null,"16","Egresos netos",{"$f":"'LIQ1'!E36","v":445586.5357988333},408195.91402923752,394960.61292469577,544029.14155111602,352158.23548130796]
[null,"17","LCR (%) (fila 15/ fila 16)",{"$f":"'LIQ1'!E37","v":2.7279772276642089},3.1374369271588769,3.0796528025324745,2.5500295870020464,4.0723175668364853]
[null,"","Razón de financiamiento estable neto (NSFR)"]
[null,"18","Financiamiento estable disponible (FED)",{"$f":"'LIQ2'!H25","v":6539909.3126058001},6643907.3599463664,6636014.8763851672,7158558.3101216694,7264553.4472007304]
[null,"19","Financiamiento estable requerido (FER)",{"$f":"'LIQ2'!H45","v":6204641.3318166314},6240535.0874979328,6123967.7051387504,6178576.6394149801,6382293.4531933004]
[null,"20","NSFR (%) (fila 18/ fila 19)",{"$f":"'LIQ2'!H46","v":1.0540350300459684},1.0646374496405822,1.0836136302313852,1.1586096164050299,1.1382355732273644]
[]
[]
[null,"Comentario"]
[null,"Los valores de las filas 13, 14, 15, 16, 17, 18, 19 y 20 de la columna \"a\" corresponden a cifras promedios del trimestre abril a junio 2024.\nLos valores de las filas 13, 14, 15, 16, 17, 18, 19 y 20 de la columna \"b\" corresponden a cifras promedios del trimestre enero a marzo 2024.\nLos valores de las filas 13, 14, 15, 16, 17, 18, 19 y 20 de la columna \"c\" corresponden a cifras promedios del trimestre octubre a diciembre 2023.\nLos valores de las filas 13, 14, 15, 16, 17, 18, 19 y 20 de la columna \"d\" corresponden a cifras promedios del trimestre julio a septiembre 2023."]

{"sheet":"OV1 ","index":2,"n_rows":39,"n_cols":6,"rows_kept":39,"cut":false,"hidden":false,"merged":[[5,1,5,2],[8,3,8,4],[39,1,44,5]]}
[]
[]
[]
[]
[null,"OV1 - Presentación de los APR"]
[null,{"$f":"'KM1'!$B$6","v":"Cifras en millones de pesos chilenos (CLP$)"}]
[]
[null,null,"","a","b","c"]
[null,null,null,"APR",null,"Requerimientos mínimos de capital"]
[null,null,"",{"$f":"Indice!B2","v":"2024-06-01"},{"$f":"EOMONTH(D10,-3)","v":"2024-03-31"},{"$f":"D10","v":"2024-06-01"}]
[null,1,"Riesgo de crédito (excluido riesgo de crédito de contraparte y exposiciones en securitizaciones)",6728051.8506679991,6835386.6466849996,538244.14805343992]
[null,2,"Método estándar (ME)",6728051.8506679991,6835386.6466849996,538244.14805343992]
[null,3,"Metodologías internas (MI)",0,0,0]
[null,4,"Del cual, con el método de atribución de la Comisión."]
[null,5,"Del cual, con el método basado en calificaciones internas avanzado (A-IRB)"]
[null,6,"Riesgo de crédito de contraparte (CEM)",83718.299995000008,110036.48273599999,6697.4639996000005]
[null,7,"Del cual, con el método estándar para el riesgo de crédito de contraparte (SA-CCR)"]
[null,8,"Del cual, con el método de modelos internos (IMM)"]
[null,9,"Del cual, otros CCR"]
[null,10,"Ajustes de valoración del crédito (CVA)"]
[null,11,"Posiciones accionariales con el método de ponderación por riesgo simple y el método de modelos internos durante el periodo transitorio de cinco años"]
[null,12,"Fondos de inversión en el libro de banca – método del constituyente",0,0,0]
[null,13,"Fondos de inversión en el libro de banca – método del reglamento interno",0,0,0]
[null,14,"Fondo de inversión en el libro de banca - método alternativo",0,0,0]
[null,15,"Riesgo de liquidación"]
[null,16,"Exposiciones de securitización en el libro de banca",4415.6216199999999,4648.9538419999999,353.24972960000002]
[null,17,"De las cuales, con el método IRB de securitización (SECIRBA)"]
[null,18,"De las cuales, con el método basado en calificaciones externas para securitizaciones (SEC-ERBA), incluido método de evaluación interna (IAA)"]
[null,19,"De las cuales, con el método estándar para securitizaciones (SEC-SA)"]
[null,20,"Riesgo de mercado (MES)",133227.36347700001,116725.82277699999,10658.189078160001]
[null,21,"Del cual, con el método estándar (MES)"]
[null,22,"Del cual, con métodos basados en modelos internos (IMA)"]
[null,23,"Riesgo operacional",676746.796157,663029.36093299999,54139.743692560005]
[null,24,"Montos no deducidos de capital",160878.869607,147630.02665000001,12870.30956856]
[null,25,"Ajuste de piso mínimo (capital agregado)",0,0,0]
[null,26,"Total (1+6++12+13+14+16+20+23+24+25)",7787038.8015239993,7877457.2936230004,622963.10412191995]
[]
[]
[null,"Comentario"]

{"sheet":"CCA","index":3,"n_rows":51,"n_cols":9,"rows_kept":51,"cut":false,"hidden":false,"merged":[[5,1,5,2],[51,1,56,8],[6,3,6,8]]}
[]
[]
[]
[]
[null,"CCA - Principales características de los instrumentos de capital regulatorio"]
[null,{"$f":"'KM1'!$B$6","v":"Cifras en millones de pesos chilenos (CLP$)"}]
[null,null,null,{"$f":"\"Primer semestre\"&\" \"&YEAR(Indice!B2)","v":"Primer semestre 2024"}]
[null,null,null,"Acciones","E1","J1","J2","J3","J4"]
[null,1,"Emisor","Banco Security","Banco Security","Banco Security","Banco Security","Banco Security","Banco Security"]
[null,2,"Identificador único (ej. CUSIP, ISIN o identificador Bloomberg de una colocación privada)","999 (No listado en bolsa)","USECE10506","USECJ11206","USECJ20312","USECJ31013","USECJ41018"]
[null,3,"Legislación(es) por la(s) que se rige el instrumento","Legislación Chile","Legislación Chile/Ran 21-3","Legislación Chile/Ran 21-3","Legislación Chile/Ran 21-3","Legislación Chile/Ran 21-3","Legislación Chile/Ran 21-3"]
[null,"3a","Medios por los que se exige el obligado cumplimiento de la sección 13 de las condiciones de emisión (hoja de términos) de TLAC (para otros instrumentos admisibles como TLAC que se rigen por legislación extranjera"]
[null,4,"Normas durante el periodo de transición","CET1","T2","T2","T2","T2","T2"]
[null,5,"Normas posteriores a la transición","CET1","T2","T2","T2","T2","T2"]
[null,6,"Admisible a nivel individual/consolidado  local/consolidado global","Consolidado Local","Individual/Consolidado Local","Individual/Consolidado Local","Individual/Consolidado Local","Individual/Consolidado Local","Individual/Consolidado Local"]
[null,7,"Tipo de instrumento","Acción ordinaria","Bono Subordinado","Bono Subordinado","Bono Subordinado","Bono Subordinado","Bono Subordinado"]
[null,8,"Cifra consignada en el patrimonio efectivo (cifra monetaria en millones, en la fecha de divulgación más reciente)",325040.96183599997,3599,23117,99191,88333,136916]
[null,9,"Valor nominal del instrumento","-","1200000 (CLF)","3000000 (CLF)","3000000 (CLF)","3000000 (CLF)","5000000 (CLF)"]
[null,10,"Clasificación contable","Patrimonio","Pasivo - Costo Amortizado","Pasivo - Costo Amortizado","Pasivo - Costo Amortizado","Pasivo - Costo Amortizado","Pasivo - Costo Amortizado"]
[null,11,"Fecha original de emisión","-","2006-05-01","2007-12-01","2012-03-01","2013-10-01","2018-10-01"]
[null,12,"Sin vencimiento (perpetuo) o a vencimiento","Sin vencimiento","Fecha Vencimiento","Fecha Vencimiento","Fecha Vencimiento","Fecha Vencimiento","Fecha Vencimiento"]
[null,13,"Fecha original de vencimiento","Sin vencimiento","2028-05-01","2031-12-01","2037-03-01","2038-10-01","2048-10-01"]
[null,14,"Amortización anticipada por parte del emisor sujeta a previa aprobación de la Comisión","No","N/A","N/A","N/A","N/A","N/A"]
[null,15,"Fecha de amortización anticipada opcional, fechas de amortización anticipada contingente y monto","N/A","N/A","N/A","N/A","N/A","N/A"]
[null,16,"Posteriores fechas de amortización, si aplica","N/A","N/A","N/A","N/A","N/A","N/A"]
[null,null,"Intereses / dividendos "]
[null,17,"Interés/ dividendo fijo o variable","Variable","Fijo","Fijo","Fijo","Fijo","Fijo"]
[null,18,"Tasa de interés del cupón y cualquier índice relacionado","N/A","4,00% anual a 360 días","3,00% anual a 360 días","4,00% anual a 360 días","4,00% anual a 360 días","2,9% anual a 360 días"]
[null,19,"Existencia de un mecanismo que frene el dividendo","Si","No","No","No","No","No"]
[null,20,"Totalmente discrecional, parcialmente discrecional u obligatorio","Parcialmente discrecional","Obligatorio","Obligatorio","Obligatorio","Obligatorio","Obligatorio"]
[null,21,"Existencia de cláusula step-up u otro incentivo a amortizar"]
[null,22,"No acumulativo o acumulativo","No acumulativo","Acumulativo","Acumulativo","Acumulativo","Acumulativo","Acumulativo"]
[null,23,"Convertible o no convertible","No convertible","No convertible","No convertible","No convertible","No convertible","No convertible"]
[null,24,"Si es convertible, gatillo(s) de la conversión","N/A","N/A","N/A","N/A","N/A","N/A"]
[null,25,"Si es convertible, total o parcial","N/A","N/A","N/A","N/A","N/A","N/A"]
[null,26,"Si es convertible, tasa de conversión","N/A","N/A","N/A","N/A","N/A","N/A"]
[null,27,"Si es convertible, conversión obligatoria u opcional"]
[null,28,"Si es convertible, especificar el tipo de instrumento en el que es convertible","N/A","N/A","N/A","N/A","N/A","N/A"]
[null,29,"Si es convertible, especificar el emisor del instrumento en el que se convierte","N/A","N/A","N/A","N/A","N/A","N/A"]
[null,30,"Posibilidad de depreciación/caducidad del valor contable","N/A","N/A","N/A","N/A","N/A","N/A"]
[null,31,"Si se contempla la depreciación/caducidad del valor contable, gatillos(s) de la depreciación/caducidad","N/A","N/A","N/A","N/A","N/A","N/A"]
[null,32,"Si se contempla la depreciación/caducidad del valor contable, depreciación/caducidad total o parcial"]
[null,33,"Si se contempla la depreciación/caducidad del valor contable, depreciación/caducidad permanente o temporal","N/A","N/A","N/A","N/A","N/A","N/A"]
[null,34,"Si la depreciación/caducidad del valor contable es temporal, descripción del mecanismo de reapreciación posterior del valor contable","N/A","N/A","N/A","N/A","N/A","N/A"]
[null,"34a","Tipo de subordinación"]
[null,35,"Posición en la jerarquía de subordinación en caso de liquidación (especificar el tipo de instrumento inmediatamente preferente al instrumento en cuestión en el orden de prelación para insolvencias de la entidad jurídica en cuestión)"]
[null,36,"Características transitorias eximentes","No","No","No","No","No","No"]
[null,37,"En caso afirmativo, especificar las características eximentes","N/A","N/A","N/A","N/A","N/A","N/A"]
[]
[]
[null,"Comentario"]

{"sheet":"CC1","index":4,"n_rows":110,"n_cols":5,"rows_kept":110,"cut":false,"hidden":false,"merged":[[5,1,5,2],[109,1,114,4],[6,3,6,4]]}
[]
[]
[]
[]
[null,"CC1 - Composición del capital regulatorio"]
[null,{"$f":"'KM1'!$B$6","v":"Cifras en millones de pesos chilenos (CLP$)"}]
[null,null,null,{"$f":"Indice!$B$2","v":"2024-06-01"}]
[null,null,null,"a","b"]
[null,null,null,"Montos","A partir de los números de referencia del balance respecto al nivel de consolidación regulatorio "]
[null,null,"Capital básico o capital ordinario nivel 1: instrumentos y reservas"]
[null,1,"Capital social ordinario admisible emitido directamente (y su equivalente para las entidades distintas de una sociedad por acciones (non-joint stock companies)) más las primas de emisión relacionadas",325040.96183599997,"(h) de CC2"]
[null,2,"Utilidades no distribuidas",535900.77710800001]
[null,3,"Otras partidas del resultado integral acumuladas (y otras reservas)",25162.886243000001]
[null,4,"Capital emitido directamente sujeto a su eliminación gradual del CET1 (solo aplicable a las entidades distintas de una sociedad por acciones",0]
[null,5,"Capital social ordinario emitido por filiales y en poder de terceros (monto permitido en el CET1 del grupo del interés no controlador)",44.918873099999999]
[null,6,"Capital básico nivel 1 previo a ajustes regulatorios (suma fila 1 a fila 5)",886149.54406009999]
[null,null,"Capital básico nivel 1 posterior a ajustes regulatorios"]
[null,7,"Ajustes de valoración prudente"]
[null,8,"Goodwill (neto de pasivos por impuestos relacionados)",9209.00893,"(a) - (d) de CC2"]
[null,9,"Otros intangibles salvo derechos de operación de créditos hipotecarios (netos de pasivos por impuestos relacionados)",11833.1585196,"(b) - (e) de CC2"]
[null,10,"Activos por impuestos diferidos que dependen de la rentabilidad futura del banco, excluidos los procedentes de diferencias temporal",1313.6091590999999]
[null,11,"Reserva de valorización por cobertura contable de flujos de efectivo",-1006.8285854999999]
[null,12,"Insuficiencia de provisiones por pérdidas esperadas",0]
[null,13,"Ganancias por ventas en transacciones de operaciones securitizadas",0]
[null,14,"Ganancias o pérdidas acumuladas por variaciones del riesgo de crédito propio de pasivos financieros valorizados a valor razonable",0]
[null,15,"Activos por planes de pensiones de beneficios definidos",0]
[null,16,"Inversión en instrumentos propios (si no se ha restado ya de la rúbrica de capital desembolsado del balance publicado)",0]
[null,17,"Participaciones cruzadas en instrumentos de capital"]
[null,18,"Inversiones no significativas en el capital de entidades bancarias, financieras y de seguros no incluidas en el perímetro de consolidación regulatorio cuando el banco no posea más del 10% del capital social emitido (monto por encima del umbral del 10%)",0]
[null,19,"Inversiones significativas en el capital básico de entidades bancarias, financieras y de seguros no incluidas en el perímetro de consolidación regulatorio (monto por encima del umbral del 10%)",0]
[null,20,"Ajuste regulatorio por umbrales - Derechos de operación de créditos hipotecarios (monto por encima del umbral del 10%) ",0,"(c) - (f) - umbral 10% de CC2"]
[null,21,"Ajuste regulatorio por umbrales - Activos por impuestos diferidos por diferencias temporales (monto por encima del umbral del 10%, neta de pasivos netos por impuestos diferidos)",2342.6481879000003]
[null,22,"Monto por encima del umbral del 15%",0]
[null,23,"Del cual: Inversiones significativas en el capital ordinario de entidades financieras no consolidadas en CET1",0]
[null,24,"Del cual: Derechos de operación de créditos hipotecarios",0]
[null,25,"Del cual: Impuestos diferidos por diferencias temporales",0]
[null,26,"Ajustes regulatorios locales específicos: por inversión en filiales",0]
[null,27,"Ajustes regulatorios aplicados al capital básico nivel 1 ante la insuficiencia de capital adicional nivel 1 y capital nivel 2 para cubrir deducciones",0]
[null,28,"Ajustes regulatorios totales al capital ordinario nivel 1 (suma filas 8 a 22 + fila 26 y 27)",23691.596211099997]
[null,29,"Capital ordinario nivel 1 (CET1) (fila 6 – fila 28)",862457.94784899999]
[null,null,"Capital adicional nivel 1: instrumentos"]
[null,30,"Instrumentos admisibles en el capital adicional nivel 1 emitidos directamente más las primas de emisión relacionadas",0,"(i) de CC2"]
[null,31,"De los cuales: clasificados como recursos propios con arreglo a la normativa contable pertinente"]
[null,32,"De los cuales: clasificados como pasivos con arreglo a la normativa contable pertinente",0]
[null,33,"Instrumentos de capital emitidos directamente sujetos a su eliminación gradual del capital adicional nivel 1"]
[null,34,"Instrumentos incluidos en el capital adicional nivel 1 (e instrumentos del CET1 no incluidos en la fila 5) emitidos por filiales y en poder de terceros"]
[null,35,"De los cuales: instrumentos emitidos por filiales sujetos a eliminación gradual"]
[null,36,"Capital adicional nivel 1 previo a ajustes regulatorios (fila 30)",0]
[null,null,"Capital adicional nivel 1 posterior a ajustes regulatorios"]
[null,37,"Inversión en instrumentos propios incluidos en el capital adicional nivel 1"]
[null,38,"Participaciones cruzadas en instrumentos incluidos en el capital adicional nivel 1"]
[null,39,"Inversiones no significativas en el capital de entidades bancarias, financieras y de seguros no incluidas en el perímetro de consolidación regulatorio cuando el banco no posea más del 10% del capital social emitido de la entidad (monto por encima del umbral del 10%)",0]
[null,40,"Inversiones significativas en el capital de entidades bancarias, financieras y de seguros no incluidas en el perímetro de consolidación regulatorio",0]
[null,41,"Ajustes regulatorios locales específicos"]
[null,42,"Ajustes regulatorios aplicados al capital adicional nivel 1 ante la insuficiencia de capital nivel 2 para cubrir deducciones",0]
[null,43,"Ajustes regulatorios totales al capital adicional nivel 1 (suma fila 39 a 42)",0]
[null,44,"Capital adicional nivel 1 (AT1) (fila 36- fila 43)",0]
[null,45,"Capital nivel 1 (T1 = CET1 + AT1) (fila 29+ fila 44)",862457.94784899999]
[null,null,"Capital nivel 2: instrumentos y provisiones"]
[null,46,"Instrumentos admisibles en el capital nivel 2 emitidos directamente más las primas de emisión relacionadas",351155.58915199997]
[null,47,"Instrumentos de capital emitidos directamente sujetos a su eliminación gradual del capital de nivel 2",0]
[null,48,"Instrumentos incluidos en el capital nivel 2 (e instrumentos de CET1 y de AT1 no incluidos en las filas 5 o 34) emitidos por filiales y en poder de terceros",0]
[null,49,"De los cuales: instrumentos emitidos por filiales sujetos a eliminación gradual",0]
[null,50,"Provisiones",25000]
[null,51,"Capital nivel 2 previo a ajustes regulatorios (fila 46 + fila 47 + fila 50)",376155.58915199997]
[null,null,"Capital nivel 2 posterior a ajustes regulatorios"]
[null,52,"Inversiones en instrumentos propios incluidos en el capital nivel 2"]
[null,53,"Participaciones cruzadas en instrumentos de capital nivel 2 y otros pasivos TLAC"]
[null,54,"Inversiones no significativas en el capital y otros pasivos TLAC de entidades bancarias, financieras y de seguros no incluidas en el perímetro de consolidación regulatorio cuando el banco no posea más del 10% del capital social emitido de la entidad (monto por encima del umbral del 10%)",0]
[null,"54a","Inversiones no significativas en otros pasivos TLAC de entidades bancarias, financieras y de seguros no incluidas en el perímetro de consolidación regulatorio cuando el banco no posea más del 10% del capital social emitido de la entidad",0]
[null,55,"Inversiones significativas en el capital y otros pasivos TLAC de entidades bancarias, financieras y de seguros no incluidas en el perímetro de consolidación regulatorio (netas de posiciones cortas admisibles)",0]
[null,56," Ajustes regulatorios locales específicos"]
[null,57,"Ajustes regulatorios totales al capital nivel 2 (suma filas 54 a 55)",0]
[null,58,"Capital nivel 2 (T2) (fila 51- fila 57)",376155.58915199997]
[null,59,"Patrimonio efectivo (PE = T1 + T2) (fila 45 + fila 58)",1238613.537001]
[null,60,"Activos ponderados por riesgo totales",7787038.8018065896]
[null,null,"Coeficientes, colchones de capital y cargo sistémico"]
[null,61,"Capital ordinario nivel 1 (% de los APR) (fila 29/ fila 60)",0.11075557343427005]
[null,62,"Capital nivel 1 (% de los APR) (fila 45/ fila 60)",0.11075557343427005]
[null,63,"Patrimonio efectivo (% de los APR) (fila 59/ fila 60)",0.15906091757416724]
[null,64,"Colchón de conservación y colchón contra cíclico, más requerimiento de mayor absorción de pérdidas para D SIBs (% de los APR)",2.3750000000000004E-2]
[null,65,"Del cual: colchón de conservación",1.8750000000000003E-2]
[null,66,"Del cual: colchón contra cíclico específico del banco de acuerdo con la norma local",5.0000000000000001E-3]
[null,67,"Del cual: requerimiento de mayor absorción de pérdidas para D-SIBs (HLA) (cargo mínimo)",0]
[null,68,"Capital ordinario nivel 1 (CET1) (% de los APR) disponible después de cumplir los requerimientos de capital mínimos del banco Mínimos locales",6.3997760934270037E-2]
[null,null,"Mínimos locales"]
[null,69,"Coeficiente mínimo local de CET1",4.6757812499999996E-2]
[null,70,"Coeficiente mínimo local de capital nivel 1",6.2343749999999996E-2]
[null,71,"Coeficiente mínimo local de Patrimonio efectivo",8.3124999999999991E-2]
[null,null,"Montos por debajo de los umbrales de deducción (antes de la ponderación por riesgo)"]
[null,72,"Inversiones no significativas en el capital y otros pasivos TLAC de otras entidades financieras",0]
[null,73,"Inversiones significativas en el capital ordinario de entidades financieras",0]
[null,74,"Derechos de operación de créditos hipotecarios (netos de pasivos por impuestos relacionados)",0]
[null,75,"Activos por impuestos diferidos procedentes de diferencias temporales (netos de pasivos por impuestos relacionados)",0]
[null,null,"Techos aplicables a la inclusión de provisiones en el capital nivel 2"]
[null,76,"Provisiones admisibles en el capital nivel 2 relativas a las posiciones sujetas al método estándar (antes de la aplicación del techo)",25000]
[null,77,"Techo a la inclusión de provisiones en el capital nivel 2 de acuerdo con método estándar",87213.308027157385]
[null,78,"Provisiones admisibles en el capital nivel 2 relativas a las posiciones sujetas a metodologías internas (antes de la aplicación del techo)",0]
[null,79,"Techo a la inclusión de provisiones en el capital nivel de acuerdo con metodologías internas",0]
[null,null,"Instrumentos de capital sujetos a eliminación gradual (solo aplicable entre el 1 de diciembre de 2020 y el 1 de enero de 2031)"]
[null,80,"Techo actual a los instrumentos CET1 sujetos a eliminación gradual"]
[null,81,"Monto excluido del CET1 debido al techo (cantidad por encima del techo tras amortizaciones y vencimientos)"]
[null,82,"Techo actual a los instrumentos AT1 sujetos a eliminación gradual"]
[null,83,"Monto excluido del AT1 debido al techo (cantidad por encima del techo tras amortizaciones y vencimientos)"]
[null,84,"Techo actual a los instrumentos T2 sujetos a eliminación gradual",0]
[null,85,"Monto excluido del T2 debido al techo (cantidad por encima del techo tras amortizaciones y vencimientos)",0]
[]
[]
[null,"Comentario"]
[null,"Fila 9 considera (b)- (e) del reporte CC2 multiplicado por aplicación gradual de descuentos regulatorios de capital."]

{"sheet":"CC2","index":5,"n_rows":87,"n_cols":5,"rows_kept":87,"cut":false,"hidden":false,"merged":[[86,1,91,4],[5,1,5,2]]}
[]
[]
[]
[]
[null,"CC2 - Conciliación del capital regulatorio con el balance"]
[null,{"$f":"'KM1'!$B$6","v":"Cifras en millones de pesos chilenos (CLP$)"}]
[null,null,"a","b","c"]
[null,null,"Estados financieros publicados","Con arreglo al perímetro de consolidación regulatorio","Referencia"]
[null,null,{"$f":"\"Al cierre de \"&TEXT(Indice!B2,\"mmmm\")&\" \"&YEAR(Indice!B2)","v":"Al cierre de junio 2024"},{"$f":"C9","v":"Al cierre de junio 2024"}]
[null,"Activos"]
[null,"Efectivo y depósitos en bancos",512544]
[null,"Operaciones con liquidación en curso",138006]
[null,"Activos financieros para negociar a valor razonable con cambios en resultados",230687]
[null,"Contratos de derivados financieros",185051]
[null,"Instrumentos financieros de deuda",40906]
[null,"Otros",4730]
[null,"Activos financieros no destinados a negociación valorados obligatoriamente a valor razonable con cambios en resultados",0]
[null,"Activos financieroa desginados a valor razonable con cambios en resultados",0]
[null,"Activos financieros a valor razonable con cambios en otro resultado integral",1286377]
[null,"Instrumentos financieros de deuda",1281133]
[null,"Otros",5244]
[null,"Contratos de derivados financieros para cobertura contable",47114]
[null,"Activos financieros a costo amortizado",7547722]
[null,"Derechos por pactos de retroventa y préstamos de valores",0]
[null,"Instrumentos financieros de deuda",419425]
[null,"Adeudado por bancos",0]
[null,"Créditos y cuentas por cobrar a clientes - Comerciales",5465810]
[null,"Créditos y cuentas por cobrar a clientes - Vivienda",1204869]
[null,"Créditos y cuentas por cobrar a clientes - Consumo",457618]
[null,"Inversiones en sociedades",2601]
[null,"Activos intangibles",52554]
[null,"De los cuales: Goodwill",9209,null,"(a)"]
[null,"De los cuales: otros intangibles (excluidos los derechos de operación de créditos hipotecarios)",43345,null,"(b)"]
[null,"De los cuales: derechos de operación de créditos hipotecarios",0,null,"(c)"]
[null,"Activos fijos",16856]
[null,"Activos por derecho a usar bienes en arrendamiento",15557]
[null,"Impuestos corrientes",1258]
[null,"Impuestos diferidos",91931]
[null,"Otros activos",104523]
[null,"Activos no corrientes y grupos enajenables para la venta",45285]
[null,"Total activos",10093015]
[null,"Pasivos"]
[null,"Operaciones con liquidación en curso",111828]
[null,"Pasivos financieros para negociar a valor razonable con cambios en resultados",179506]
[null,"Contratos de derivados financieros",179506]
[null,"Otros",0]
[null,"Pasivos financieros designados a valor razonables con cambios en resultados",0]
[null,"Contratos de derivados financieros para cobertura contable",37596]
[null,"Del cual: DVA",0]
[null,"Pasivos financieros a costo amortizado",8226156]
[null,"Depósitos y otras obligaciones a la vista",929864]
[null,"Depósitos y otras captaciones a plazo",3521127]
[null,"Obligaciones por pactos de retrocompra y préstamos de valores",16972]
[null,"Obligaciones con bancos",618885]
[null,"Instrumentos financieros de deuda emitidos",3106424]
[null,"Otras obligaciones financieras",32884]
[null,"Obligaciones por contratos de arrendamiento",16270]
[null,"Instrumentos financieros de capital regulatorio emitidos",412739]
[null,"Provisiones por contingencias",30236]
[null,"Provisiones para dividendos, pago de intereses y reapreciación de instrumentos financieros de capital regulatorio emitidos",25080]
[null,"Provisiones especiales por riesgo de crédito",33337]
[null,"Impuestos corrientes",13319]
[null,"Impuestos diferidos",0]
[null,"De los cuales: pasivos por impuestos diferidos relacionados con Goodwill",0,null,"(d)"]
[null,"De los cuales: pasivos por impuestos diferidos relacionados con activos intangibles (excluidos los derechos de operación de créditos hipotecarios)",3901.6228259999998,null,"(e)"]
[null,"De los cuales: pasivos por impuestos diferidos relacionados con derechos de operación de créditos hipotecarios",0,null,"(f)"]
[null,"Otros pasivos",120788]
[null,"Pasivos incluidos en enajenables para la venta",0]
[null,"Total pasivos",9206855]
[null,"Patrimonio"]
[null,"Capital social suscrito y pagado",325041]
[null,"Del cual: monto admisible como CET1",{"$f":"C71","v":325041},null,"(h)"]
[null,"Del cual: monto admisible como AT1",0,null,"(i)"]
[null,"Reservas",19896]
[null,"Otro resultado integral acumulado",5266]
[null,"Elementos que no se reclasificarán en resultados",267]
[null,"Elementos que pueden reclasificarse en resultados",4999]
[null,"Utilidades acumuladas retenidas de ejercicios anteriores",477381]
[null,"Utilidad del ejercicio",83600]
[null,"Menos: Provisiones para dividendos, pago de intereses y reapreciación de instrumentos financieros de capital regulatorio emitidos",-25080]
[null,"De los propietarios del Banco",886104]
[null,"Del interés no controlador",56]
[null,"Total de patrimonio",886160]
[]
[]
[]
[null,"Pasivo por impuesto diferidos relacionados con activos intangibles: Corresponde a pasivos por impuestos diferidos asociados a otros intangibles distintos a Goodwill y derechos de servicios de crédito hipotecarios, el cual se encuentra contenido Activos por Impuesto diferidos.  Aplicación NIC 12 respecto al Netting entre los rubros de activos y pasivos por impuestos diferidos. Reportado en los Estados Financieros Intermedios Consolidados de Banco Security a junio 2024."]

{"sheet":"LR1","index":6,"n_rows":22,"n_cols":4,"rows_kept":22,"cut":false,"hidden":false,"merged":[[22,1,27,6],[10,3,10,6],[11,3,11,6],[12,3,12,6],[4,1,4,6],[5,1,5,2],[7,3,7,6],[8,1,8,2],[8,3,9,6],[16,3,16,6],[17,3,17,6],[20,1,20,6],[13,3,13,6],[14,3,14,6],[15,3,15,6]]}
[]
[]
[]
[]
[null,"LR1 – Resumen comparativo de los activos contables frente a la medida de la exposición de la razón de apalancamiento "]
[null,{"$f":"'KM1'!$B$6","v":"Cifras en millones de pesos chilenos (CLP$)"}]
[]
[null,null,null,"a"]
[null,null,null,{"$f":"\"Promedio\"&\" \"&TEXT(EOMONTH(Indice!B2,-2),\"mmmm\")&\" \"&YEAR(EOMONTH(Indice!B2,-2))&\" a \"&TEXT(Indice!B2,\"mmmm\")&\" \"&YEAR(Indice!B2)","v":"Promedio abril 2024 a junio 2024"}]
[]
[null,1,"Activos totales en los estados financieros publicados (neto de provisiones exigidas).",10163883.072655]
[null,2,"Ajustes sobre CET1",-52062.43553533333]
[null,3,"Ajustes relativos a activos fiduciarios reconocidos en el balance conforme al marco contable vigente, pero excluidos de la medida de la exposición del coeficiente de apalancamiento"]
[null,4,"Exposición con instrumentos financieros derivados (equivalentes de crédito)",-68804.783280333344]
[null,5,"Ajustes por operaciones de financiación con valores SFT (es decir, repos y préstamos garantizados similares) "]
[null,6,"Ajustes por exposiciones de créditos contingentes ",369232.09970766661]
[null,7,"Otros ajustes (activos que se generan por la intermediación de instrumentos financieros a nombre propio por cuenta de terceros, otros)",0]
[null,8,"Medida de la exposición de la razón de apalancamiento (suma fila 1 a 7)",10412247.953546999]
[]
[]
[]
[null,"Comentario"]

{"sheet":"LR2","index":7,"n_rows":39,"n_cols":5,"rows_kept":39,"cut":false,"hidden":false,"merged":[[31,1,31,2],[34,1,34,2],[4,1,4,5],[5,1,5,2],[12,1,12,2],[21,1,21,2],[27,1,27,2]]}
[]
[]
[]
[]
[null,"LR2 - Formulario divulgativo común de la razón de apalancamiento"]
[null,{"$f":"'KM1'!$B$6","v":"Cifras en millones de pesos chilenos (CLP$)"}]
[null,null,null,"a","b"]
[null,null,null,{"$f":"\"Promedio\"&\" \"&TEXT(EOMONTH(Indice!B2,-2),\"mmmm\")&\" \"&YEAR(EOMONTH(Indice!B2,-2))&\" a \"&TEXT(Indice!B2,\"mmmm\")&\" \"&YEAR(Indice!B2)","v":"Promedio abril 2024 a junio 2024"},{"$f":"\"Promedio\"&\" \"&TEXT(EOMONTH(Indice!B2,-5),\"mmmm\")&\" \"&YEAR(EOMONTH(Indice!B2,-5))&\" a \"&TEXT(EOMONTH(Indice!B2,-3),\"mmmm\")&\" \"&YEAR(EOMONTH(Indice!B2,-3))","v":"Promedio enero 2024 a marzo 2024"}]
[null,"Exposiciones dentro de balance"]
[null,1,"Exposiciones dentro de balance (excluidos derivados)",9924621.8199840002,10656345.150983667]
[null,2,"(Montos de los activos deducidos para determinar el capital básico y ajustes regulatorios)",-52062.43553533333,-49109.560962333337]
[null,3,"Exposiciones totales dentro del balance (excluidos derivados) (suma de las filas 1 y 2)",9872559.3844486661,10607235.590021333]
[null,"Exposiciones en derivados (Equivalentes de crédito)"]
[null,4,"Equivalente de crédito asociado a todas las operaciones con derivados (valor razonable y monto adicional)",170456.46939066667,242708.71331233333]
[null,5,"Montos añadidos por exposiciones futuras potenciales asociadas a todas las operaciones con derivados"]
[null,6,"Garantías brutas proporcionadas para la deducción de los activos del balance de acuerdo con el marco contable"]
[null,7,"Deducciones de activos por cobrar por el margen de variación de efectivo provisto en transacciones de derivados"]
[null,8,"(Tramo ECC exento por exposiciones a operaciones comerciales liquidadas por el cliente)"]
[null,9,"Monto nocional efectivo ajustado de los derivados de crédito suscritos"]
[null,10,"(Compensaciones nocionales efectivas ajustadas y deducciones adicionales por derivados del crédito suscritos)"]
[null,11,"Total de exposiciones a derivados (fila 4)",170456.46939066667,242708.71331233333]
[null,"Exposiciones por operaciones de financiación con valores (SFT)"]
[null,12,"Activos SFT brutos (sin reconocer compensaciones), después de ajustes por transacciones contables por ventas"]
[null,13,"(Cifra neta de montos pendientes de pago en efectivo y montos pendientes de cobro en efectivo relativos a activos SFT brutos)"]
[null,14,"Exposición al riesgo de crédito de contraparte por activos SFT"]
[null,15,"Exposiciones por operaciones como agente"]
[null,16,"Total de exposiciones por operaciones de financiación con valores (suma de las filas 12 a 15)"]
[null,"Otras exposiciones fuera de balance"]
[null,17,"Exposición fuera de balance valorada por su monto nocional bruto",1418509.4649046666,1402108.8123620001]
[null,18,"(Ajustes por conversión a equivalentes crediticios)",-1049277.3651969999,-1030329.8150149999]
[null,19,"Partidas fuera de balance (suma de las filas 17 y 18)",369232.09970766661,371778.997347]
[null,"Capital y exposiciones totales"]
[null,20,"Capital básico",854637.11679703323,883422.29329973331]
[null,21,"Total de exposiciones (suma de las filas 3, 11 y 19)",10412247.953547001,11221723.300680667]
[null,"Razón de apalancamiento"]
[null,22,"Razón de apalancamiento",8.207998124995626E-2,7.872429836566619E-2]
[]
[]
[null,"Comentario"]

{"sheet":"LIQ1","index":8,"n_rows":40,"n_cols":5,"rows_kept":40,"cut":false,"hidden":false,"merged":[[40,1,45,4],[5,1,5,2],[6,3,6,4],[8,1,9,1],[8,2,9,2],[8,3,9,3],[8,4,9,4]]}
[]
[]
[]
[]
[null,"LIQ1 - Razón de cobertura de liquidez (LCR)"]
[null,{"$f":"'KM1'!$B$6","v":"Cifras en millones de pesos chilenos (CLP$)"}]
[null,null,null,{"$f":"Indice!B2","v":"2024-06-01"}]
[null,null,null,"a","b"]
[null,null,null,"Valor total no\nponderado\n(promedio)","Valor total\nponderado\n(promedio)"]
[]
[null,"Activos líquidos de alta calidad (ALAC)"]
[null,1,"ALAC",2452967.8993933336,1215549.922613]
[null,"Flujos de egresos"]
[null,2,"Depósitos, obligaciones a la vista y otras captaciones a plazo a personas naturales y PyMES (depósitos minoristas), de los cuales:",1444068.6740576667,107154.4675465]
[null,3,"Cubiertos 100% por un seguro de depósito o garantía (depósitos estables)",745047.99718533328,37252.399859266668]
[null,4,"No cubiertos o parcialmente cubiertos por un seguro de depósito o garantía (depósitos menos estables)",699020.67687233328,69902.067687233328]
[null,5,"Depósitos, obligaciones a la vista y otras captaciones a plazo de mayoristas no cubierto o parcialmente cubierto por un seguro de depósito o garantía (Financiación mayorista no garantizada), de la cual:",496736.17972266668,426914.84680266673]
[null,6,"Con fines operacionales (depósitos operativos)",0,0]
[null,7,"Sin fines operacionales (depósitos no operativos)",423732.99768766668,353911.66476766672]
[null,8,"Deuda no garantizada",73003.182034999991,73003.182034999991]
[null,9,"Depósitos, obligaciones a la vista y otras captaciones a plazo de mayoristas cubiertos 100% por un seguro de depósito o garantía (financiación mayorista garantizada)",113490.32195033332,22698.064390066673]
[null,10,"Requerimientos adicionales, de los cuales:",1445754.8933283333,388253.96152771666]
[null,11,"Egresos por instrumentos derivados, otros requerimientos adicionales de liquidez y de garantías",244948.57120199999,244855.73184875]
[null,12,"Egresos relacionados con la pérdida de financiación en instrumentos de deuda",0,0]
[null,13,"Facilidades de crédito y liquidez (líneas entregadas)",1200806.3221263334,143398.22967896666]
[null,14,"Otras obligaciones de financiación contractual",476683.01528233336,334931.97968515003]
[null,15,"Otras obligaciones de financiación contingente",342485.20566400001,34248.520566400002]
[null,16,"EGRESOS TOTALES",null,1314201.8405185]
[null,"Flujos de ingresos"]
[null,17,"Crédito garantizado (colocaciones, contrato de retro venta)",695296.94724266662,274197.95427133335]
[null,18,"Ingresos procedentes de posiciones totalmente al corriente de pago (efectivo y disponible, instrumentos de inversión no derivados)",1250958.532017,341399.45906199998]
[null,19,"Otros ingresos (derivados y otros activos)",468161.47103333334,253017.8913863333]
[null,20,"INGRESOS TOTALES",null,868615.3047196666]
[null,null,null,null,"Total ajustado"]
[null,21,"ALAC total",null,1215549.922613]
[null,22,"Egresos netos",null,445586.5357988333]
[null,23,"LCR (%)",null,2.7279772276642089]
[]
[]
[null,"Comentario"]

{"sheet":"LIQ2","index":9,"n_rows":49,"n_cols":8,"rows_kept":49,"cut":false,"hidden":false,"merged":[[49,1,54,7],[5,1,5,2],[10,1,10,2],[25,1,25,2],[8,7,9,7],[8,3,8,6],[6,3,6,7]]}
[]
[]
[]
[]
[null,"LIQ2 - Razón de financiamiento estable neto (NSFR)"]
[null,{"$f":"'KM1'!$B$6","v":"Cifras en millones de pesos chilenos (CLP$)"}]
[null,null,null,{"$f":"Indice!$B$2","v":"2024-06-01"}]
[null,null,null,"a","b","c","d","e"]
[null,null,null,"Valor no ponderado por vencimiento contractual",null,null,null,"Valor Ponderado"]
[null,null,null,"Sin vencimiento (banda 1)","<6 meses (bandas 2, 3 y 4)","De 6 meses a 1 año (banda 5)","≥ 1 año (banda 6 y 7)"]
[null,"Financiamiento Estable Disponible (FED)"]
[null,1,"Capital",910291.08863000001,0,0,351477.6714060001,1252085.050662]
[null,2,"Capital regulatorio",910291.08863000001,0,0,351477.6714060001,1252085.050662]
[null,3,"Otros instrumentos de capital",0,0,0,0,0]
[null,4,"Depósitos, obligaciones a la vista y otras captaciones a plazo a personas naturales y PyMES (depósitos minoristas), de los cuales:",741584.08188100008,990831.46759700007,46065.531133999997,6251.6155609999996,1606884.5881118001]
[null,5,"Cubiertos 100% por un seguro de depósito o garantía (depósitos estables)",741584.08188100008,6071.1506653333336,2119.786098,4788.4155896666662,679585.93236956676]
[null,6,"No cubiertos o parcialmente cubiertos por un seguro de depósito o garantía (depósitos menos estables)",0,984760.31693166669,43945.745036,1463.1999713333335,927298.65574223327]
[null,7,"Depósitos, obligaciones a la vista y otras captaciones a plazo de mayoristas (financiación mayorista), de las cuales:",179742.55863000001,1660174.9055576667,763348.21836699999,220803.18114600002,806679.99567866663]
[null,8,"Con fines operacionales (depósitos operativos)",0,0,0,0,0]
[null,9,"Sin fines operacionales y otra financiación mayorista",179742.55863000001,1660174.9055576667,763348.21836699999,220803.18114600002,806679.99567866663]
[null,10,"Pasivos con correspondientes activos interdependientes",0,159406.69028466666,0,0,0]
[null,11,"Otros pasivos, de los cuales:",885380.81823666673,967293.61573433341,246613.51445533332,2806112.3256013333,2874259.6781533337]
[null,12,"Pasivos derivados a efectos del NSFR",null,187110.49745466668,11376.377460666668,49471.215945333337]
[null,13,"Todos los demás recursos propios y ajenos no incluidos en las anteriores categorías",885380.81823666673,780183.11827966676,235237.13699466665,2756641.109656,2874259.6781533337]
[null,14,"FED TOTAL",null,null,null,null,6539909.3126058001]
[null,"Financiamiento Estable Requerido (FER)"]
[null,15,"Total de activos líquidos de alta calidad (ALAC) a efectos del NSFR",null,null,null,null,43642.128660216666]
[null,16,"Depósitos mantenidos en otras instituciones financieras con fines operativos",-12501.514196000002,199037.12410666666,4209.9544313333345,3871.6336536666663,37480.645220999999]
[null,17,"Préstamos y valores\nal corriente de pago:",0,1983216.4750716668,729624.63477833348,4589923.2617076673,5333574.0922652986]
[null,18,"Préstamos al corriente de pago a instituciones financieras garantizadas por ALAC de nivel 1",0,1578616.6107453334,569161.12081466673,3132666.29214,3870713.6440667999]
[null,19,"Préstamos al corriente de pago a instituciones financieras garantizadas por ALAC distintos de nivel 1 y préstamos al corriente de pago a instituciones financieras no garantizadas",0,126865.45841766667,118807.97383133334,310488.46721899998,395134.23636633327]
[null,20,"Préstamos al corriente de pago a sociedades financieras, préstamos a clientes minoristas y pequeñas empresas, y préstamos a soberanos, bancos centrales y PSE, de los cuales:",0,230482.80154300001,11844.179886666667,17654.380891000001,132278.46322983335]
[null,21,"Con una ponderación por riesgo menor o igual al 35% según el Método Estándar de BII para el tratamiento del riesgo de crédito"]
[null,22,"Colocaciones hipotecaria vivienda, de las cuales:",0,29800.630853999999,29811.360245666663,1129114.1214576666,926722.26184649998]
[null,23,"Con una ponderación por riesgo menor o igual al 35% según el Método Estándar de BII para el tratamiento del riesgo de crédito"]
[null,24,"Valores que no se encuentran en situación de impago y no son admisibles como ALAC, incluidos títulos de negociados en mercados de valores",0,17450.973511666667,0,0,8725.4867558333335]
[null,25,"Activos con correspondientes pasivos interdependientes",0,0,0,0,0]
[null,26,"Otros activos:",3080919.1687360001,612678.88986633322,94428.17126233333,543557.254495,937187.35997118335]
[null,27,"Materias primas negociadas físicamente, incluido el oro",0,null,null,null,0]
[null,28,"Activos aportados como margen inicial en contratos de derivados y contribuciones a los fondos de garantía de los ECC",null,0,0,0,0]
[null,29,"Activos derivados a efectos del NSFR",null,240331.48236666666,17113.779552333333,112944.02343666666,127716.97364193335]
[null,30,"Pasivos derivados a efectos del NSFR antes de la deducción del margen de variación aportado",null,0,0,0,0]
[null,31,"Todos los demás activos no incluidos previamente",3080919.1687360001,372347.40749966662,77314.391709999996,430613.2310583333,809470.38632924994]
[null,32,"Partidas fuera de balance",null,0,0,0,-147242.89430106667]
[null,33,"FER TOTAL",null,null,null,null,6204641.3318166314]
[null,34,"NSFR (%)",null,null,null,null,1.0540350300459684]
[]
[]
[null,"Comentario"]

{"sheet":"CR1","index":10,"n_rows":18,"n_cols":10,"rows_kept":18,"cut":false,"hidden":false,"merged":[[18,1,23,9],[8,3,8,4],[5,1,5,2],[8,5,9,5],[8,6,8,7],[8,8,9,8],[8,9,9,9],[6,3,6,9]]}
[]
[]
[]
[]
[null,"CR1 - Calidad crediticia de los activos"]
[null,{"$f":"'KM1'!$B$6","v":"Cifras en millones de pesos chilenos (CLP$)"}]
[null,null,null,{"$f":"Indice!$B$2","v":"2024-06-01"}]
[null,null,null,"a","b","c","d","e","f","g"]
[null,null,null,"Valor contable bruto",null,"Indemnizaciones (dotaciones) / Deterioro","Provisiones asociadas",null,"Provisiones contables ECL para pérdidas crediticias","Valor neto (a + b - d)"]
[null,null,null,"Exposiciones en incumplimiento","Exposiciones sin incumplimiento",null,"Provisiones específicas","Provisiones adicionales"]
[null,1,"Colocaciones en el libro de banca",445618,6898025,null,215347,25000,null,7128296]
[null,2,"Instrumentos financieros en el libro de banca",0,1705505,null,0,0,null,1705505]
[null,3,"Otros activos en el libro de banca",0,962560,null,0,0,null,962560]
[null,"3a","Exposiciones fuera de balance",1405,1423850,null,7515,0,null,1417740]
[null,4,"Total",447023,10989940,null,222862,25000,null,11214101]
[]
[]
[null,"Comentario"]

{"sheet":"CR2","index":11,"n_rows":16,"n_cols":4,"rows_kept":16,"cut":false,"hidden":false,"merged":[[5,1,5,2],[16,1,21,3]]}
[]
[]
[]
[]
[null,"CR2 - Cambios en el stock de colocaciones e instrumentos financieros no derivados en el libro de banca en incumplimiento"]
[null,{"$f":"'KM1'!$B$6","v":"Cifras en millones de pesos chilenos (CLP$)"}]
[null,null,null,{"$f":"Indice!$B$2","v":"2024-06-01"}]
[null,1,"Colocaciones e instrumentos financieros no derivados en el libro de banca en situación de incumplimiento al cierre de periodo de declaración anterior",451469]
[null,2,"Activos que pasaron a incumplimiento desde el cierre del periodo anterior",65906]
[null,3,"Activos que salieron de la condición de incumplimiento desde el cierre del periodo anterior",-34868]
[null,4,"Montos castigados desde el cierre del periodo anterior",-19800]
[null,5,"Otros cambios",-15684]
[null,6,"Colocaciones e instrumentos financieros no derivados en el libro de banca en situación de incumplimiento al cierre de periodo de declaración (1+2-3-4 ± 5)",447023]
[]
[]
[null,"Comentario"]

{"sheet":"CR3","index":12,"n_rows":16,"n_cols":8,"rows_kept":16,"cut":false,"hidden":false,"merged":[[5,1,5,2],[16,1,21,7],[6,3,6,7]]}
[]
[]
[]
[]
[null,"CR3 - Técnicas de mitigación de RC (CRM): presentación general"]
[null,{"$f":"'KM1'!$B$6","v":"Cifras en millones de pesos chilenos (CLP$)"}]
[null,null,null,{"$f":"Indice!$B$2","v":"2024-06-01"}]
[null,null,null,"a","b","c","d","e"]
[null,null,null,"Exposiciones no garantizadas","Exposiciones garantizadas","Exposiciones garantizadas por avales o fianzas","Exposiciones garantizadas con garantías financieras","Exposiciones garantizadas por derivados de crédito"]
[null,1,"Colocaciones",6968794,159502,120285,39218]
[null,2,"Instrumentos financieros no derivados",1705505,0,0,0]
[null,3,"Total",8674299,159502,120285,39218]
[null,4,"De las cuales, en situación de incumplimiento",300500,11931,11792,139]
[]
[]
[null,"Comentario"]

{"sheet":"CR4","index":13,"n_rows":35,"n_cols":9,"rows_kept":35,"cut":false,"hidden":false,"merged":[[5,1,5,2],[8,3,8,4],[8,5,8,6],[8,7,8,8],[35,1,40,8],[6,3,6,8]]}
[]
[]
[]
[]
[null,"CR4 - Método estándar: exposiciones al RC y efectos del CRM"]
[null,{"$f":"'KM1'!$B$6","v":"Cifras en millones de pesos chilenos (CLP$)"}]
[null,null,null,{"$f":"Indice!$B$2","v":"2024-06-01"}]
[null,null,null,"a","b","c","d","e","f"]
[null,null,null,"Exposiciones antes de FCC y CRM",null,"Exposiciones después de FCC y CRM",null,"APRC y densidad de APRC"]
[null,null,"Clases de Activos","Monto en balance","Monto fuera de balance","Monto en balance","Monto fuera de balance","APRC","Densidad de los APRC"]
[null,1,"Soberanos y Bancos Centrales",1595845,0,1595845,0,0,0]
[null,2,"Entidades del sector público",19568,2444,19568,1221,19812,0.95299999999999996]
[null,3,"Instituciones internacionales y Bancos multilaterales de desarrollo",0,0,0,0,0,0]
[null,4,"Bancos y Cooperativas de Ahorro y Crédito supervisadas por la CMF",367132,64583,367132,32265,141350,0.35399999999999998]
[null,null,"De los cuales, sociedades de valores y otras instituciones financieras "]
[null,5,"Bonos garantizados e hipotecarios",0,0,0,0,0,0]
[null,6,"Empresas",2353948,390839,2353948,194417,2097129,0.82299999999999995]
[null,null,"De los cuales, sociedades de valores y otras instituciones financieras "]
[null,null,"Préstamos especializados",249337,14703,249337,12923,289767,1.105]
[null,7,"Deuda subordinada, acciones y otros instrumentos de capital",0,0,0,0,0,0]
[null,8,"Minoristas",590106,807269,590106,90987,603987,0.88700000000000001]
[null,9,"Bienes raíces ",3864372,132129,3864372,29295,3062065,0.78600000000000003]
[null,null,"De lo cuales, bien raíz residencial",1910826,98442,1910826,13645,1046732,0.54400000000000004]
[null,null,"De lo cuales, bien raíz comercial",1471077,27393,1471077,12672,1481058,0.998]
[null,null,"De lo cuales, CRE en general"]
[null,null,"De lo cuales, adquisición de terrenos, promoción y construcción ",482469,6294,482469,2978,534275,1.101]
[null,10,"Fondos de inversión",0,0,0,0,0,0]
[null,11,"En incumplimiento ",312431,706,312431,706,392198,1.252]
[null,12,"Categorías de mayor riesgo",0,0,0,0,0,0]
[null,13,"Transferencia de fondos en curso",139300,0,139300,0,12307,8.7999999999999995E-2]
[null,14,"Otros activos",187525,0,187525,0,109438,0.58399999999999996]
[null,15,"Total",9679564,1412673,9679564,361814,6728053,0.67]
[]
[]
[null,"Comentario"]

{"sheet":"CR5","index":14,"n_rows":31,"n_cols":13,"rows_kept":31,"cut":false,"hidden":false,"merged":[[5,1,5,2],[31,1,36,12],[6,3,6,12]]}
[]
[]
[]
[]
[null,"CR5 - Método estándar: exposiciones por tipo de contraparte y ponderaciones por RC"]
[null,{"$f":"'KM1'!$B$6","v":"Cifras en millones de pesos chilenos (CLP$)"}]
[null,null,null,{"$f":"Indice!$B$2","v":"2024-06-01"}]
[null,null,null,"a","b","c","d","e","f","g","h","i","j"]
[null,null,"Tipos de contrapartes/ Ponderación por RC",0,0.1,0.2,0.35,0.5,0.75,1,1.5,"Otros","Monto total de exposiciones al RC (después de FCC y CRM)"]
[null,1,"Soberanos y Bancos Centrales",1595845,0,0,0,0,0,0,0,0,1595845]
[null,2,"Entidades del sector público",0,0,1221,0,0,0,19567,0,0,20788]
[null,3,"Instituciones internaciones y Bancos multilaterales de desarrollo",0,0,0,0,0,0,0,0,0,0]
[null,4,"Bancos y Cooperativas de Ahorro y Crédito supervisadas por la CMF",0,0,271823,0,41911,0,57615,0,28049,399398]
[null,5,"Bonos garantizados e hipotecarios",0,0,0,0,0,0,0,0,0,0]
[null,6,"Empresas",0,0,0,0,0,0,1212304,0,1336062,2548366]
[null,null,"Préstamos especializados",0,0,0,0,0,0,167749,0,94512,262261]
[null,7,"Deuda subordinada, acciones y otros instrumentos de capital",0,0,0,0,0,0,0,0,0,0]
[null,8,"Minoristas",0,0,0,0,0,154791,471550,0,54753,681094]
[null,9,"Bienes raíces ",0,0,174861,17544,222492,64108,392174,151082,2871406,3893667]
[null,null,"De lo cuales, bien raíz residencial",0,0,174861,17544,222492,64108,20749,133,1424585,1924472]
[null,null,"De lo cuales, bien raíz comercial",0,0,0,0,0,0,0,36928,1446821,1483749]
[null,null,"De lo cuales, adquisición de terrenos, promoción y construcción ",0,0,0,0,0,0,371425,114021,0,485446]
[null,10,"Fondos de inversión",0,0,0,0,0,0,0,0,0,0]
[null,11,"En incumplimiento ",0,0,0,0,0,0,127331,185806,0,313137]
[null,12,"Categorías de mayor riesgo ",0,0,0,0,0,0,0,0,0,0]
[null,13,"Transferencia de fondos en curso",116886,0,12390,0,0,0,8729,0,1294,139299]
[null,14,"Otros activos",71943,0,7680,0,0,0,107902,0,0,187525]
[null,15,"Total",1784674,0,467975,17544,264403,218899,2564921,336888,4386076,10041380]
[]
[]
[null,"Comentario"]

{"sheet":"CCR1","index":15,"n_rows":18,"n_cols":9,"rows_kept":18,"cut":false,"hidden":false,"merged":[[5,1,5,2],[18,1,23,8],[6,3,6,8]]}
[]
[]
[]
[]
[null,"CCR1 - Análisis de la exposición al riesgo de crédito de contraparte"]
[null,{"$f":"'KM1'!$B$6","v":"Cifras en millones de pesos chilenos (CLP$)"}]
[null,null,null,{"$f":"Indice!$B$2","v":"2024-06-01"}]
[null,null,null,"a","b","c","d","e","f"]
[null,null,null,"Sumatoria de valores razonables positivos","Nocionales asociados","Montos adicionales","Equivalente de crédito, antes de CRM","Equivalente de crédito, después de CRM","APRC, después de CRM"]
[null,1,"Exposición con contraparte bilateral",210465,306510,96045,306510,155275,82997]
[null,2,"Exposición con contraparte ECC",21259,40503,19244,40503,13548,271]
[null,3,"Enfoque simple para la mitigación del riesgo de crédito (para SFT)"]
[null,4,"Enfoque integral para la mitigación del riesgo de crédito (para SFT)"]
[null,5,"VaR para SFT"]
[null,6,"Total",231724,347013,115289,347013,168823,83268]
[]
[]
[null,"Comentario"]

{"sheet":"CCR3","index":16,"n_rows":21,"n_cols":12,"rows_kept":21,"cut":false,"hidden":false,"merged":[[5,1,5,2],[21,1,26,11],[6,3,6,11]]}
[]
[]
[]
[]
[null,"CCR3 - Método estándar para las exposiciones CCR por tipo de contraparte y ponderaciones por riesgo"]
[null,{"$f":"'KM1'!$B$6","v":"Cifras en millones de pesos chilenos (CLP$)"}]
[null,null,null,{"$f":"Indice!$B$2","v":"2024-06-01"}]
[null,null,null,"a","b","c","d","e","f","g","h","i"]
[null,null,"Tipos de contrapartes/ Ponderación por riesgo",0,0.1,0.2,0.5,0.75,1,1.5,"Otras","Exposición total al RC"]
[null,1,"Soberanos y Bancos Centrales",0,0,0,0,0,0,0,0,0]
[null,2,"Entidades del sector público",0,0,0,0,0,0,0,0,0]
[null,3,"Instituciones internacionales o Bancos multilaterales de desarrollo",0,0,0,0,0,0,0,0,0]
[null,4,"Bancos y Cooperativas de Ahorro y Crédito supervisadas por la CMF",0,0,68606,2144,0,0,0,14637,85387]
[null,5,"Sociedades de valores"]
[null,6,"Empresas",0,0,0,0,0,39100,0,25936,65036]
[null,7,"Minoristas",0,0,0,0,0,1263,0,0,1263]
[null,8,"Otros activos",0,0,0,0,0,0,0,0,0]
[null,9,"Total",0,0,68606,2144,0,40363,0,40573,151686]
[]
[]
[null,"Comentario"]

{"sheet":"CCR5","index":17,"n_rows":23,"n_cols":8,"rows_kept":23,"cut":false,"hidden":false,"merged":[[5,1,5,2],[8,6,8,7],[23,1,28,7],[8,2,8,5],[9,2,9,3],[9,4,9,5],[9,6,10,6],[9,7,10,7],[6,2,6,5]]}
[]
[]
[]
[]
[null,"CCR5 - Composición del colateral para exposiciones al CCR"]
[null,{"$f":"'KM1'!$B$6","v":"Cifras en millones de pesos chilenos (CLP$)"}]
[null,null,{"$f":"Indice!$B$2","v":"2024-06-01"}]
[null,null,"a","b","c","d","e","f"]
[null,null,"Colateral empleado en operaciones con derivados",null,null,null,"Colateral empleado en operaciones de financiamiento de valores"]
[null,null,"Valor razonable del colateral recibido",null,"Valor razonable del colateral entregado",null,"Valor razonable del colateral recibido","Valor razonable del colateral entregado"]
[null,null,"Segregado","No Segregado","Segregado","No Segregado"]
[null,"Efectivo - moneda nacional",0,0,0,0]
[null,"Efectivo - Otras monedas",37943.760000000002,0,19005.053377799999,0]
[null,"Titulos de deuda emitidos por le Estado chileno o por el BCCh",1556.382648,0,0,0]
[null,"Otra deuda soberana",0,0,0,0]
[null,"Titulo de deuda corporativos con grado de inversión",2549,0,0,0]
[null,"Otros titulos de deuda corporativos",0,0,0,0]
[null,"Acciones",0,0,0,0]
[null,"Otros colateral",0,0,0,0]
[null,"Total",42049.142648000001,0,19005.053377799999,0]
[]
[]
[null,"Comentario"]

{"sheet":"CCR8","index":18,"n_rows":32,"n_cols":5,"rows_kept":32,"cut":false,"hidden":false,"merged":[[5,1,5,2],[32,1,37,4],[6,3,6,4]]}
[]
[]
[]
[]
[null,"CCR8 - Exposiciones frente a entidades de contraparte central"]
[null,{"$f":"'KM1'!$B$6","v":"Cifras en millones de pesos chilenos (CLP$)"}]
[null,null,null,{"$f":"Indice!$B$2","v":"2024-06-01"}]
[null,null,null,"a","b"]
[null,null,null,"Exposición después de CRM","APRC"]
[null,1,"Exposición a ECC autorizadas (total)",null,722]
[null,2,"Exposiciones por operaciones frente a ECC autorizadas (excluidos márgenes iniciales y aportes al fondo de garantía) de las cuales:",12850,257]
[null,3,"(i) Derivados OTC",12850,257]
[null,4,"(ii) Derivados negociados en bolsa",0,0]
[null,5,"(iii) Operaciones de financiación con valores"]
[null,6,"(iv) Conjuntos de derivados en los que se haya aprobado la compensación entre productos",0,0]
[null,7,"Margen inicial  segregado",16185]
[null,8,"Margen inicial no segregado",0,0]
[null,9,"Aportes desembolsados al fondo de garantía",1100,22]
[null,10,"Aportes no desembolsados al fondo de garantía*",22150,443]
[null,11,"Exposiciones a ECC no autorizadas (total) ",null,0]
[null,12,"Exposiciones por operaciones frente a ECC no autorizadas (excluidos márgenes iniciales y aportes al fondo de garantía); de las cuales: ",0,0]
[null,13,"i) Derivados OTC ",0,0]
[null,14,"ii) Derivados negociados en bolsa ",0,0]
[null,15,"iii) Operaciones de financiación con valores "]
[null,16,"iv) Conjuntos de derivados en los que se haya aprobado la compensación entre productos ",0,0]
[null,17,"Margen inicial segregado",0]
[null,18,"Margen inicial no segregado ",0,0]
[null,19,"Aportes desembolsados al fondo de garantía",0,0]
[null,20,"Aportes no desembolsados al fondo de garantía ",0,0]
[]
[]
[null,"Comentario"]

{"sheet":"SEC1","index":19,"n_rows":24,"n_cols":15,"rows_kept":24,"cut":false,"hidden":false,"merged":[[5,1,5,2],[24,1,29,14],[8,3,8,6],[8,7,8,10],[8,11,8,14],[6,3,6,14]]}
[]
[]
[]
[]
[null,"SEC1 - Exposiciones securitizadas en el libro de banca"]
[null,{"$f":"'KM1'!$B$6","v":"Cifras en millones de pesos chilenos (CLP$)"}]
[null,null,null,{"$f":"Indice!$B$2","v":"2024-06-01"}]
[null,null,null,"a","b","c","d","e","f","g","h","i","j","k","l"]
[null,null,null,"Banco actúa como originador",null,null,null,"Banco actúa como patrocinador",null,null,null,"Banco actúa como inversionista"]
[null,null,null,"Tradicional","Tradicional que","Sintético","Sub- total","Tradicional","Tradicional que","Sintético","Sub- total","Tradicional","Tradicional que","Sintético","Sub- total"]
[null,1,"Subyacente grupal De las cuales:",0,0,0,0,0,0,0,0,0,0,0,0]
[null,2,"Créditos para la vivienda (letras o mutuos hipotecarios)",0,0,0,0,0,0,0,0,0,0,0,0]
[null,3,"Colocaciones de consumo ",0,0,0,0,0,0,0,0,0,0,0,0]
[null,4,"Otros subyacentes grupales",0,0,0,0,0,0,0,0,0,0,0,0]
[null,5,"Re-securitización"]
[null,6,"Subyacente individual De las cuales: ",0,0,0,0,0,0,0,0,0,0,0,0]
[null,7,"Colocaciones corporativas",0,0,0,0,0,0,0,0,0,0,0,0]
[null,8,"Inversiones financieras",0,0,0,0,0,0,0,0,6530,0,0,6530]
[null,9,"Contratos de leasing ",0,0,0,0,0,0,0,0,0,0,0,0]
[null,10,"Otros subyacentes individuales",0,0,0,0,0,0,0,0,0,0,0,0]
[null,11,"Re-securitización"]
[]
[]
[null,"Comentario"]

{"sheet":"MR1","index":20,"n_rows":20,"n_cols":4,"rows_kept":20,"cut":false,"hidden":false,"merged":[[5,1,5,2],[20,1,25,3]]}
[]
[]
[]
[]
[null,"MR1 - Riesgo de mercado con el Modelo Estándar Simplificado (MES)"]
[null,{"$f":"'KM1'!$B$6","v":"Cifras en millones de pesos chilenos (CLP$)"}]
[null,null,null,"a"]
[null,null,null,{"$f":"\"APRM en\"&\" \"&TEXT(Indice!B2,\"mmmm\")&\" \"&YEAR(Indice!B2)","v":"APRM en junio 2024"}]
[null,1,"Riesgo de tasas de interés (general y específico)",126332.55475]
[null,2,"Riesgo de cotizaciones bursátiles (general y específico)",10.271274999999999]
[null,3,"Riesgo de moneda extranjera",6884.5374499999998]
[null,4,"Riesgo de materias primas",0]
[null,5,"Opciones - método simplificado",0]
[null,6,"Opciones - método delta-plus",0]
[null,7,"Opciones - método de escenarios",0]
[null,8,"Securitizaciones",0]
[null,9,"Total",133227.36347499999]
[]
[]
[null,"Comentario"]

{"sheet":"ENC","index":21,"n_rows":29,"n_cols":7,"rows_kept":29,"cut":false,"hidden":false,"merged":[[5,1,5,2],[29,1,34,6],[6,3,6,6]]}
[]
[]
[]
[]
[null,"ENC - Cargas sobre activos"]
[null,{"$f":"'KM1'!$B$6","v":"Cifras en millones de pesos chilenos (CLP$)"}]
[null,null,null,{"$f":"Indice!$B$2","v":"2024-06-01"}]
[null,null,null,"a","b","c","d"]
[null,null,null,"Activos sujetos a cargas","Facilidades del Banco Central","Activos libres de cargas","Total"]
[null,1,"Efectivo y depósitos en bancos",284771.08966100001,0,227772.91033899999,512544]
[null,2,"Operaciones con liquidación en curso",0,0,138006,138006]
[null,3,"Activos financieros para negociar a valor razonable con cambios en resultados",0,0,230687,230687]
[null,4,"Activos financieros no destinados a negociacion valorados obligatoriamente a valor razonable con cambios en resultados",0,0,0,0]
[null,5,"Activos financieros designados a valor razonable con cambios en resultados",0,0,0,0]
[null,6,"Activos financieros a valor razonable con cambios en otro resultado integral",0,0,1286377,1286377]
[null,7,"Contratos de derivados financieros para cobertura contable",0,0,47114,47114]
[null,8,"Activos financieros a costos amortizado",0,0,7547722,7547722]
[null,9,"Inversiones en sociedades",0,0,2601,2601]
[null,10,"Activos intangibles",0,0,52554,52554]
[null,11,"Activos fijos",0,0,16856,16856]
[null,12,"Activos por derecho a usar bienes en arrendamiento",0,0,15557,15557]
[null,13,"Impuestos corrientes",0,0,1258,1258]
[null,14,"Impuestos diferidos",0,0,91931,91931]
[null,15,"Otros activos",842,0,103681,104523]
[null,16,"Activos no corrientes y grupos enajenables para la venta",0,0,45285,45285]
[null,17,"Total activos",285613.08966100001,0,9807401.9103389997,10093015]
[]
[]
[null,"Comentario"]